[Event "GER-ch Youth U14 2019"]
[Site "Willingen"]
[Date "2019.06.12"]
[Round "6.7"]
[White "Arakelian, Aik"]
[Black "Haack, Kevin"]
[Result "1/2-1/2"]
[ECO "B90"]
[WhiteElo "1911"]
[BlackElo "2033"]
[Annotator "NA"]
[PlyCount "114"]
[EventDate "2019.06.07"]
[EventType "swiss"]
[EventRounds "9"]
[EventCountry "GER"]
[SourceTitle "playchess.com"]
[Source "ChessBase"]
[SourceQuality "1"]
[TimeControl "40/5400+30:1800+30"]

1. e4 {[%emt 0:00:00]} c5 {[%emt 0:00:00]} 2. Nf3 {[%emt 0:00:00]} d6 {[%emt 0:00:00]} 3. d4 {[%emt 0:00:00]} cxd4 {[%emt 0:00:00]} 4. Nxd4 {[%emt 0:00:00]} Nf6 {[%emt 0:00:00]} 5. Nc3 {[%emt 0:00:00]} a6 {[%emt 0:00:00]} 6. a4 {[%emt 0:00:07]} g6 {[%emt 0:00:06]} 7. Bg5 {[%emt 0:01:13]} Nbd7 {[%emt 0:00:54]} 8. a5 {[%emt 0:00:49]} Bg7 {[%emt 0:00:52]} 9. Be2 {[%emt 0:00:54]} O-O {[%emt 0:00:54]} 10. O-O {[%emt 0:00:53]} Qc7 {[%emt 0:01:27]} 11. Qd2 {[%emt 0:01:40]} b6 {[%emt 0:06:18]} 12. axb6 {[%emt 0:02:20]} Nxb6 {[%emt 0:01:02]} 13. Bh6 {[%emt 0:01:13]} Bb7 {[%emt 0:03:08]} 14. Bxg7 {[%emt 0:02:07]} Kxg7 {[%emt 0:02:44]} 15. f3 {[%emt 0:00:52]} Rfd8 {[%emt 0:03:19]} 16. Rfd1 {[%emt 0:03:27]} d5 {[%emt 0:07:41]} 17. exd5 {[%emt 0:02:06]} Nbxd5 {[%emt 0:01:06]} 18. Nxd5 {[%emt 0:04:51]} Nxd5 {[%emt 0:00:36]} 19. Qa5 {[%emt 0:05:01]} e5 {[%emt 0:07:07]} 20. Qxc7 {[%emt 0:00:40]} Nxc7 {[%emt 0:00:04]} 21. Nb3 {[%emt 0:00:10]} Rxd1+ {[%emt 0:10:43]} 22. Rxd1 {[%emt 0:00:16]} Bd5 {[%emt 0:00:35]} 23. Nc5 {[%emt 0:02:32]} a5 {[%emt 0:01:48]} 24. c4 {[%emt 0:04:11]} Be6 {[%emt 0:02:47]} 25. Rd6 {[%emt 0:01:17]} Kf8 {[%emt 0:02:06]} 26. Rc6 {[%emt 0:02:37]} Ra7 {[%emt 0:00:49]} 27. Kf2 {[%emt 0:01:10]} Ke7 {[%emt 0:04:04]} 28. Ke3 {[%emt 0:01:11]} Bd7 {[%emt 0:04:34]} 29. Rb6 {[%emt 0:03:08]} Ne6 {[%emt 0:00:52]} 30. Nxe6 {[%emt 0:01:51]} Bxe6 {[%emt 0:00:08]} 31. g4 {[%emt 0:04:37]} Rc7 {[%emt 0:02:59]} 32. b3 {[%emt 0:06:14]} a4 {[%emt 0:00:50]} 33. bxa4 {[%emt 0:00:24]} Bxc4 {[%emt 0:00:12]} 34. Bxc4 {[%emt 0:00:04]} Rxc4 {[%emt 0:00:04]} 35. a5 {[%emt 0:00:07]} Ra4 {[%emt 0:04:15]} 36. a6 {[%emt 0:00:17]} f5 {[%emt 0:02:06]} 37. gxf5 {[%emt 0:06:14]} gxf5 {[%emt 0:00:08]} 38. Rh6 {[%emt 0:01:49]} Kd8 {[%emt 0:03:37]} 39. h4 {[%emt 0:01:12]} Ra3+ {[%emt 0:01:16]} 40. Ke2 {[%emt 0:01:42]} f4 {[%emt 0:02:08]} 41. h5 {[%emt 0:30:58]} Ke8 {[%emt 0:36:37]} 42. Kd2 {[%emt 0:10:56]} Kf8 {[%emt 0:02:26]} 43. Kc2 {[%emt 0:01:15]} Kg7 {[%emt 0:06:11]} 44. Kb2 {[%emt 0:01:41]} Rxf3 {[%emt 0:00:55]} 45. Rxh7+ {[%emt 0:01:05]} Kxh7 {[%emt 0:00:12]} 46. a7 {[%emt 0:00:04]} Rf2+ {[%emt 0:07:13]} 47. Kb3 {[%emt 0:00:08]} Kh6 {[%emt 0:00:33]} 48. a8=Q {[%emt 0:00:18]} Kxh5 {[%emt 0:00:28]} 49. Qe8+ {[%emt 0:01:25]} Kg4 {[%emt 0:00:11]} 50. Qxe5 {[%emt 0:00:18]} Rf3+ {[%emt 0:00:07]} 51. Kc4 {[%emt 0:00:27]} Re3 {[%emt 0:00:12]} 52. Qg7+ {[%emt 0:00:33]} Kf3 {[%emt 0:00:11]} 53. Kd4 {[%emt 0:00:14]} Re4+ {[%emt 0:00:42]} 54. Kd5 {[%emt 0:00:35]} Re1 {[%emt 0:00:40]} 55. Qg5 {[%emt 0:00:54]} Re3 {[%emt 0:00:24]} 56. Qf5 {[%emt 0:01:27]} Kg3 {[%emt 0:03:01]} 57. Kd4 {[%emt 0:01:13]} Kf3 {[%emt 0:01:03] normal} 1/2-1/2

[Event "GER-ch Youth U14 2019"]
[Site "Willingen"]
[Date "2019.06.12"]
[Round "6.8"]
[White "Chassard, Cedric"]
[Black "Roehr, Oliver"]
[Result "1/2-1/2"]
[ECO "C54"]
[WhiteElo "1772"]
[BlackElo "1960"]
[Annotator "NA"]
[PlyCount "96"]
[EventDate "2019.06.07"]
[EventType "swiss"]
[EventRounds "9"]
[EventCountry "GER"]
[SourceTitle "playchess.com"]
[Source "ChessBase"]
[SourceQuality "1"]
[TimeControl "40/5400+30:1800+30"]

1. e4 {[%emt 0:00:00]} e5 {[%emt 0:00:00]} 2. Nf3 {[%emt 0:00:00]} Nc6 {[%emt 0:00:00]} 3. Bc4 {[%emt 0:00:00]} Bc5 {[%emt 0:00:05]} 4. c3 {[%emt 0:00:00]} Nf6 {[%emt 0:00:14]} 5. d4 {[%emt 0:00:00]} exd4 {[%emt 0:00:28]} 6. cxd4 {[%emt 0:00:00]} Bb4+ {[%emt 0:00:10]} 7. Nbd2 {[%emt 0:00:00]} Nxe4 {[%emt 0:01:03]} 8. d5 {[%emt 0:00:44]} Ne7 {[%emt 0:00:40]} 9. O-O {[%emt 0:00:06]} Bxd2 {[%emt 0:00:42]} 10. Nxd2 {[%emt 0:02:41]} Nd6 {[%emt 0:01:01]} 11. Bd3 {[%emt 0:03:38]} O-O {[%emt 0:00:34]} 12. Nf3 {[%emt 0:00:50]} h6 {[%emt 0:08:05]} 13. Bc2 {[%emt 0:02:49]} Ne8 {[%emt 0:05:15]} 14. Qd3 {[%emt 0:01:30]} Nf6 {[%emt 0:00:35]} 15. d6 {[%emt 0:03:23]} Nc6 {[%emt 0:03:50]} 16. Bd2 {[%emt 0:01:04]} cxd6 {[%emt 0:13:38]} 17. Bc3 {[%emt 0:00:44]} Ne5 {[%emt 0:10:29]} 18. Nxe5 {[%emt 0:00:35]} dxe5 {[%emt 0:00:07]} 19. Bxe5 {[%emt 0:00:10]} g6 {[%emt 0:02:03]} 20. Rfe1 {[%emt 0:05:39]} d6 {[%emt 0:15:01]} 21. Qxd6 {[%emt 0:09:27]} Qxd6 {[%emt 0:04:49]} 22. Bxd6 {[%emt 0:00:06]} Re8 {[%emt 0:00:39]} 23. Be7 {[%emt 0:01:21]} Nd5 {[%emt 0:01:42]} 24. Bh4 {[%emt 0:01:39]} Rxe1+ {[%emt 0:05:24]} 25. Rxe1 {[%emt 0:00:02]} Be6 {[%emt 0:01:30]} 26. Bb3 {[%emt 0:00:44]} Nf4 {[%emt 0:03:44]} 27. Bxe6 {[%emt 0:00:56]} Nxe6 {[%emt 0:00:16]} 28. f3 {[%emt 0:00:45]} Kg7 {[%emt 0:05:38]} 29. Bf2 {[%emt 0:01:03]} a6 {[%emt 0:04:41]} 30. Be3 {[%emt 0:00:37]} Rc8 {[%emt 0:01:36]} 31. Rc1 {[%emt 0:00:41]} Rxc1+ {[%emt 0:00:49]} 32. Bxc1 {[%emt 0:00:01]} h5 {[%emt 0:02:50]} 33. Kf2 {[%emt 0:00:25]} Kf6 {[%emt 0:00:44]} 34. Ke3 {[%emt 0:01:08]} Ke5 {[%emt 0:00:26]} 35. Bd2 {[%emt 0:00:41]} Kd5 {[%emt 0:01:30]} 36. Kd3 {[%emt 0:01:46]} b5 {[%emt 0:00:24]} 37. b3 {[%emt 0:01:01]} Nd4 {[%emt 0:03:43]} 38. Be3 {[%emt 0:00:27]} Nf5 {[%emt 0:00:12]} 39. Bf2 {[%emt 0:00:23]} Ng7 {[%emt 0:01:33]} 40. Bd4 {[%emt 0:00:33]} Ne6 {[%emt 0:00:27]} 41. Be3 {[%emt 0:30:09]} Nd8 {[%emt 0:32:55]} 42. Kc3 {[%emt 0:01:47]} f6 {[%emt 0:00:00]} 43. Bd4 {[%emt 0:00:00]} f5 {[%emt 0:00:00]} 44. Be3 {[%emt 0:00:00]} Nc6 {[%emt 0:00:00]} 45. Bb6 {[%emt 0:00:00]} g5 {[%emt 0:00:00]} 46. Be3 {[%emt 0:00:00]} g4 {[%emt 0:00:00]} 47. fxg4 {[%emt 0:00:00] normal} fxg4 {[%emt 0:00:00]} 48. h3 {[%emt 0:00:00]} Ke4 {[%emt 0:00:00] normal} 1/2-1/2

[Event "GER-ch Youth U14 2019"]
[Site "Willingen"]
[Date "2019.06.12"]
[Round "6.9"]
[White "Simukov, Erik"]
[Black "Deutsch, Christoph"]
[Result "1/2-1/2"]
[ECO "C93"]
[WhiteElo "1904"]
[BlackElo "1937"]
[Annotator "NA"]
[PlyCount "45"]
[EventDate "2019.06.07"]
[EventType "swiss"]
[EventRounds "9"]
[EventCountry "GER"]
[SourceTitle "playchess.com"]
[Source "ChessBase"]
[SourceQuality "1"]
[TimeControl "40/5400+30:1800+30"]

1. e4 {[%emt 0:00:00]} e5 {[%emt 0:00:00]} 2. Nf3 {[%emt 0:00:00]} Nc6 {[%emt 0:00:00]} 3. Bb5 {[%emt 0:00:00]} a6 {[%emt 0:00:00]} 4. Ba4 {[%emt 0:00:00]} Nf6 {[%emt 0:00:00]} 5. O-O {[%emt 0:00:01]} Be7 {[%emt 0:00:03]} 6. Re1 {[%emt 0:00:12]} b5 {[%emt 0:00:12]} 7. Bb3 {[%emt 0:00:10]} d6 {[%emt 0:00:07]} 8. c3 {[%emt 0:00:10]} O-O {[%emt 0:00:12]} 9. h3 {[%emt 0:00:21]} h6 {[%emt 0:00:16]} 10. d4 {[%emt 0:01:07]} Re8 {[%emt 0:00:42]} 11. a4 {[%emt 0:07:01]} Bd7 {[%emt 0:02:16]} 12. Nbd2 {[%emt 0:07:32]} Bf8 {[%emt 0:04:01]} 13. d5 {[%emt 0:01:18]} Ne7 {[%emt 0:02:36]} 14. Nf1 {[%emt 0:01:12]} c6 {[%emt 0:03:31]} 15. dxc6 {[%emt 0:04:31]} Bxc6 {[%emt 0:00:19]} 16. Ng3 {[%emt 0:00:20]} Qc7 {[%emt 0:00:45]} 17. c4 {[%emt 0:11:22]} bxc4 {[%emt 0:05:13]} 18. Bxc4 {[%emt 0:00:12]} d5 {[%emt 0:00:12]} 19. exd5 {[%emt 0:00:43]} Nexd5 {[%emt 0:00:17]} 20. Bd2 {[%emt 0:03:21]} Nb6 {[%emt 0:03:06]} 21. Bb3 {[%emt 0:00:56]} Rad8 {[%emt 0:00:31]} 22. Qc2 {[%emt 0:10:11]} Rc8 {[%emt 0:14:21] normal} 23. Rac1 {[%emt 0:04:12] normal} 1/2-1/2

[Event "GER-ch Youth U14 2019"]
[Site "Willingen"]
[Date "2019.06.12"]
[Round "6.10"]
[White "Bui, Bao Anh Le"]
[Black "Tham, Nam"]
[Result "1-0"]
[ECO "C54"]
[WhiteElo "2065"]
[BlackElo "1993"]
[Annotator "NA"]
[PlyCount "71"]
[EventDate "2019.06.07"]
[EventType "swiss"]
[EventRounds "9"]
[EventCountry "GER"]
[SourceTitle "playchess.com"]
[Source "ChessBase"]
[SourceQuality "1"]
[TimeControl "40/5400+30:1800+30"]

1. e4 {[%emt 0:00:01]} e5 {[%emt 0:00:00]} 2. Nf3 Nc6 {[%emt 0:00:00]} 3. Bc4 {[%emt 0:00:27]} Bc5 {[%emt 0:00:05]} 4. c3 {[%emt 0:00:22]} Nf6 {[%emt 0:00:14]} 5. d3 {[%emt 0:00:11]} d6 {[%emt 0:00:38]} 6. Bb3 {[%emt 0:00:13]} a6 {[%emt 0:00:04]} 7. h3 {[%emt 0:00:06]} Ba7 {[%emt 0:00:12]} 8. Nbd2 {[%emt 0:00:07]} h6 {[%emt 0:00:04]} 9. Nf1 {[%emt 0:00:10]} Ne7 {[%emt 0:01:03]} 10. Ng3 {[%emt 0:00:16]} Ng6 {[%emt 0:00:05]} 11. O-O {[%emt 0:00:05]} O-O {[%emt 0:00:04]} 12. Re1 {[%emt 0:00:02]} Re8 {[%emt 0:00:04]} 13. d4 {[%emt 0:00:11]} Be6 {[%emt 0:08:58]} 14. Bc2 {[%emt 0:02:13]} c5 {[%emt 0:06:23]} 15. Be3 {[%emt 0:13:55]} Qc7 {[%emt 0:01:38]} 16. d5 {[%emt 0:02:40]} Bd7 {[%emt 0:00:24]} 17. Nh2 {[%emt 0:02:12]} Qc8 {[%emt 0:00:39]} 18. Nf5 {[%emt 0:01:39]} b5 {[%emt 0:00:24]} 19. Nxd6 {[%emt 0:00:09]} Qc7 {[%emt 0:00:25]} 20. Nxe8 {[%emt 0:00:07]} Rxe8 {[%emt 0:00:05]} 21. Ng4 {[%emt 0:04:20]} Nh7 {[%emt 0:00:54]} 22. Qf3 {[%emt 0:01:49]} c4 {[%emt 0:02:43]} 23. Bxa7 {[%emt 0:05:52]} Qxa7 {[%emt 0:00:35]} 24. Qe3 {[%emt 0:01:36]} Qc7 {[%emt 0:01:10]} 25. a4 {[%emt 0:00:08]} Bxg4 {[%emt 0:06:31]} 26. hxg4 {[%emt 0:01:22]} Nf4 {[%emt 0:02:45]} 27. g3 {[%emt 0:01:09]} Nh3+ {[%emt 0:00:04]} 28. Kg2 {[%emt 0:00:05]} N3g5 {[%emt 0:00:03]} 29. axb5 {[%emt 0:00:12]} axb5 {[%emt 0:00:04]} 30. Ra7 {[%emt 0:00:13]} Qc8 {[%emt 0:00:26]} 31. f4 {[%emt 0:01:51]} exf4 {[%emt 0:02:35]} 32. gxf4 {[%emt 0:00:07]} Qxg4+ {[%emt 0:00:05]} 33. Qg3 {[%emt 0:00:06]} Qh5 {[%emt 0:00:11]} 34. fxg5 {[%emt 0:00:31]} Nxg5 {[%emt 0:00:07]} 35. e5 {[%emt 0:00:30] normal} f6 {[%emt 0:05:55]} 36. e6 {[%emt 0:01:49] normal} 1-0

[Event "GER-ch Youth U14 2019"]
[Site "Willingen"]
[Date "2019.06.12"]
[Round "6.11"]
[White "Evering, Soeren"]
[Black "Laux, Dominik"]
[Result "0-1"]
[ECO "B12"]
[WhiteElo "1879"]
[BlackElo "2061"]
[Annotator "NA"]
[PlyCount "73"]
[EventDate "2019.06.07"]
[EventType "swiss"]
[EventRounds "9"]
[EventCountry "GER"]
[SourceTitle "playchess.com"]
[Source "ChessBase"]
[SourceQuality "1"]
[TimeControl "40/5400+30:1800+30"]

1. e4 {[%emt 0:00:00]} c6 {[%emt 0:00:00]} 2. d4 {[%emt 0:00:00]} d5 {[%emt 0:00:00]} 3. e5 {[%emt 0:00:00]} Bf5 {[%emt 0:00:13]} 4. h4 {[%emt 0:00:08]} h5 {[%emt 0:00:26]} 5. Bd3 {[%emt 0:00:41]} Bxd3 {[%emt 0:00:15]} 6. Qxd3 {[%emt 0:00:07]} e6 {[%emt 0:00:05]} 7. Bg5 {[%emt 0:01:08]} Qa5+ {[%emt 0:00:46]} 8. Nd2 {[%emt 0:01:17]} Qa6 {[%emt 0:01:31]} 9. c4 {[%emt 0:05:48]} Nh6 {[%emt 0:05:09]} 10. Ngf3 {[%emt 0:01:28]} Nf5 {[%emt 0:00:48]} 11. O-O {[%emt 0:01:04]} c5 {[%emt 0:11:06]} 12. dxc5 {[%emt 0:19:29]} Bxc5 {[%emt 0:01:56]} 13. Qc2 {[%emt 0:07:45]} dxc4 {[%emt 0:04:03]} 14. Nxc4 {[%emt 0:00:59]} O-O {[%emt 0:02:38]} 15. Rfd1 {[%emt 0:10:43]} Nc6 {[%emt 0:08:22]} 16. a3 {[%emt 0:15:07]} Rac8 {[%emt 0:06:14]} 17. Rac1 {[%emt 0:14:05]} Ncd4 {[%emt 0:06:30]} 18. Nxd4 {[%emt 0:01:21]} Bxd4 {[%emt 0:00:36]} 19. Qb3 {[%emt 0:03:10]} Rc6 {[%emt 0:07:13]} 20. Nd6 {[%emt 0:06:48]} Qe2 {[%emt 0:05:54]} 21. Qf3 {[%emt 0:02:18]} Qxf3 {[%emt 0:02:31]} 22. gxf3 {[%emt 0:00:02]} Rxc1 {[%emt 0:03:41]} 23. Rxc1 {[%emt 0:00:21]} Bxb2 {[%emt 0:00:44]} 24. Rb1 {[%emt 0:01:25]} Bxa3 {[%emt 0:05:19]} 25. Nxf5 {[%emt 0:00:37]} exf5 {[%emt 0:00:23]} 26. Rxb7 {[%emt 0:00:02]} Ra8 {[%emt 0:02:12]} 27. Rb3 {[%emt 0:01:11]} Bf8 {[%emt 0:00:45]} 28. Bc1 {[%emt 0:01:46]} a5 {[%emt 0:02:34]} 29. Ba3 {[%emt 0:00:49]} a4 {[%emt 0:00:12]} 30. Rd3 {[%emt 0:01:14]} Bxa3 {[%emt 0:01:03]} 31. Rxa3 {[%emt 0:00:00]} f4 {[%emt 0:00:19]} 32. Kf1 {[%emt 0:00:15]} Kh7 {[%emt 0:00:33]} 33. Ke2 {[%emt 0:00:12]} Kg6 {[%emt 0:00:06]} 34. Kd3 {[%emt 0:00:23]} Kf5 {[%emt 0:00:07]} 35. Kd4 {[%emt 0:00:42]} g5 {[%emt 0:01:19]} 36. hxg5 {[%emt 0:00:28]} h4 {[%emt 0:01:00]} 37. g6 {[%emt 0:01:32] normal} 0-1

[Event "GER-ch Youth U14 2019"]
[Site "Willingen"]
[Date "2019.06.12"]
[Round "6.12"]
[White "Kosev, Momchil"]
[Black "Schubert, Nikita"]
[Result "1/2-1/2"]
[ECO "A05"]
[WhiteElo "1827"]
[BlackElo "1806"]
[Annotator "NA"]
[PlyCount "129"]
[EventDate "2019.06.07"]
[EventType "swiss"]
[EventRounds "9"]
[EventCountry "GER"]
[SourceTitle "playchess.com"]
[Source "ChessBase"]
[SourceQuality "1"]
[TimeControl "40/5400+30:1800+30"]

1. Nf3 {[%emt 0:00:00]} Nf6 {[%emt 0:00:00]} 2. g3 {[%emt 0:00:00]} d5 {[%emt 0:00:05]} 3. Bg2 {[%emt 0:00:00]} Bg4 {[%emt 0:06:38]} 4. h3 {[%emt 0:03:59]} Bh5 {[%emt 0:00:32]} 5. O-O {[%emt 0:01:06]} Nbd7 {[%emt 0:02:09]} 6. d3 {[%emt 0:05:08]} e5 {[%emt 0:03:58]} 7. Nbd2 {[%emt 0:03:22]} c6 {[%emt 0:09:33]} 8. e4 {[%emt 0:02:00]} Qc7 {[%emt 0:02:00]} 9. Re1 {[%emt 0:08:08]} Bd6 {[%emt 0:05:28]} 10. exd5 {[%emt 0:07:50]} cxd5 {[%emt 0:01:19]} 11. c4 {[%emt 0:00:41]} O-O {[%emt 0:05:02]} 12. cxd5 {[%emt 0:01:00]} Nxd5 {[%emt 0:01:07]} 13. Qb3 {[%emt 0:01:01]} Nb4 {[%emt 0:06:12]} 14. Nc4 {[%emt 0:07:11]} a5 {[%emt 0:03:18]} 15. Be3 {[%emt 0:13:52]} Bc5 {[%emt 0:21:27]} 16. a3 {[%emt 0:03:10]} a4 {[%emt 0:05:11]} 17. Qc3 {[%emt 0:04:27]} Nd5 {[%emt 0:02:55]} 18. Qc1 {[%emt 0:03:33]} Nxe3 {[%emt 0:07:55]} 19. Nxe3 {[%emt 0:01:22]} Qb6 {[%emt 0:01:21]} 20. Qd2 {[%emt 0:02:09]} Qa7 {[%emt 0:03:13]} 21. Nd5 {[%emt 0:05:46]} f6 {[%emt 0:02:15]} 22. Nh2 {[%emt 0:02:20]} Rac8 {[%emt 0:01:02]} 23. Ng4 {[%emt 0:06:58]} Nb6 {[%emt 0:00:57]} 24. Nge3 {[%emt 0:00:51]} Rfd8 {[%emt 0:01:04]} 25. Rac1 {[%emt 0:02:24]} Bf7 {[%emt 0:00:58]} 26. Nc3 {[%emt 0:01:50]} Qa6 {[%emt 0:00:36]} 27. Be4 {[%emt 0:01:12]} Nc4 {[%emt 0:02:08]} 28. Qe2 {[%emt 0:02:57]} Na5 {[%emt 0:01:13]} 29. Ncd5 {[%emt 0:02:46]} Nb3 {[%emt 0:00:48]} 30. Rcd1 {[%emt 0:00:36]} Nd4 {[%emt 0:01:02]} 31. Qf1 {[%emt 0:00:41]} Bg6 {[%emt 0:00:59]} 32. Bg2 {[%emt 0:02:33]} Bh5 {[%emt 0:00:56]} 33. g4 {[%emt 0:00:09]} Bg6 {[%emt 0:00:10]} 34. Kh1 {[%emt 0:01:12]} Kh8 {[%emt 0:01:29]} 35. Kg1 {[%emt 0:00:09]} b5 {[%emt 0:00:55]} 36. Kh1 {[%emt 0:00:23]} Bb6 {[%emt 0:00:25]} 37. Ne7 {[%emt 0:00:41]} Rc7 {[%emt 0:00:46]} 38. Nxg6+ {[%emt 0:00:34]} hxg6 {[%emt 0:00:13]} 39. Nd5 {[%emt 0:00:05]} Rcd7 {[%emt 0:00:49]} 40. Nxb6 {[%emt 0:01:41]} Qxb6 {[%emt 0:00:01]} 41. Rc1 {[%emt 0:31:32]} Nb3 {[%emt 0:08:53]} 42. Rc3 {[%emt 0:00:00]} Nc5 {[%emt 0:05:07]} 43. Be4 {[%emt 0:00:00]} Kh7 {[%emt 0:10:09]} 44. Re3 {[%emt 0:00:00]} Rd4 {[%emt 0:00:50]} 45. Qe2 {[%emt 0:00:00]} Nxe4 {[%emt 0:06:36]} 46. Rxe4 {[%emt 0:00:00]} Qd6 {[%emt 0:01:08]} 47. Rxd4 {[%emt 0:00:00]} exd4 {[%emt 0:00:59]} 48. Rc2 {[%emt 0:00:00]} Rd7 {[%emt 0:00:09]} 49. Qf3 {[%emt 0:01:23]} Re7 {[%emt 0:00:48]} 50. Kg2 {[%emt 0:01:59]} Qe6 {[%emt 0:00:51]} 51. Qf4 {[%emt 0:01:27]} Qb3 {[%emt 0:00:35]} 52. Rd2 {[%emt 0:00:24]} Qd5+ {[%emt 0:00:28]} 53. Qf3 {[%emt 0:00:12]} Qd7 {[%emt 0:00:41]} 54. Re2 {[%emt 0:00:27]} Rf7 {[%emt 0:00:50]} 55. Qa8 {[%emt 0:01:09]} f5 {[%emt 0:00:29]} 56. g5 {[%emt 0:00:34]} f4 {[%emt 0:00:30]} 57. Re8 {[%emt 0:00:38]} Qb7+ {[%emt 0:00:43]} 58. Qxb7 {[%emt 0:00:05]} Rxb7 {[%emt 0:00:01]} 59. Re4 {[%emt 0:00:29]} b4 {[%emt 0:00:57]} 60. Rxd4 {[%emt 0:00:08]} bxa3 {[%emt 0:00:15]} 61. bxa3 {[%emt 0:00:02]} Rb3 {[%emt 0:00:06]} 62. Rxa4 {[%emt 0:00:23]} Rxd3 {[%emt 0:00:20]} 63. Ra8 {[%emt 0:00:19]} Rd5 {[%emt 0:00:50]} 64. h4 {[%emt 0:00:06]} Rd3 {[%emt 0:00:19]} 65. a4 {[%emt 0:00:49] normal} 1/2-1/2

[Event "GER-ch Youth U14 2019"]
[Site "Willingen"]
[Date "2019.06.12"]
[Round "6.13"]
[White "May, Ben-Iven"]
[Black "Farokhi, Keyvan"]
[Result "0-1"]
[ECO "B10"]
[WhiteElo "1692"]
[BlackElo "1963"]
[Annotator "NA"]
[PlyCount "92"]
[EventDate "2019.06.07"]
[EventType "swiss"]
[EventRounds "9"]
[EventCountry "GER"]
[SourceTitle "playchess.com"]
[Source "ChessBase"]
[SourceQuality "1"]
[TimeControl "40/5400+30:1800+30"]

1. e4 {[%emt 0:00:00]} c6 {[%emt 0:00:00]} 2. Nc3 {[%emt 0:00:00]} d5 {[%emt 0:00:00]} 3. Nf3 {[%emt 0:00:00]} dxe4 {[%emt 0:00:00]} 4. Nxe4 {[%emt 0:00:00]} Bg4 {[%emt 0:00:00]} 5. Be2 {[%emt 0:00:58]} e6 {[%emt 0:00:39]} 6. O-O {[%emt 0:00:15]} Be7 {[%emt 0:00:30]} 7. d4 {[%emt 0:00:28]} Nf6 {[%emt 0:00:11]} 8. Ng3 {[%emt 0:00:04]} O-O {[%emt 0:00:23]} 9. b3 {[%emt 0:01:50]} Nbd7 {[%emt 0:00:28]} 10. Bb2 {[%emt 0:00:04]} Nh5 {[%emt 0:03:14]} 11. Nxh5 {[%emt 0:04:19]} Bxh5 {[%emt 0:00:02]} 12. Ne5 {[%emt 0:00:07]} Bxe2 {[%emt 0:01:01]} 13. Qxe2 {[%emt 0:00:01]} Nxe5 {[%emt 0:07:36]} 14. dxe5 {[%emt 0:00:11]} Bc5 {[%emt 0:00:10]} 15. Rad1 {[%emt 0:00:15]} Qe7 {[%emt 0:00:08]} 16. Rd3 {[%emt 0:04:28]} Rfd8 {[%emt 0:01:20]} 17. Rfd1 {[%emt 0:00:14]} Rxd3 {[%emt 0:00:14]} 18. Qxd3 {[%emt 0:00:13]} Bb6 {[%emt 0:00:36]} 19. c4 {[%emt 0:07:38]} Rd8 {[%emt 0:03:08]} 20. Qe2 {[%emt 0:00:28]} Rd7 {[%emt 0:02:22]} 21. h3 {[%emt 0:07:52]} Qd8 {[%emt 0:00:13]} 22. Rxd7 {[%emt 0:00:04]} Qxd7 {[%emt 0:00:02]} 23. Kf1 {[%emt 0:00:12]} Bc5 {[%emt 0:05:08]} 24. Bc3 {[%emt 0:03:48]} b5 {[%emt 0:03:58]} 25. Ke1 {[%emt 0:07:15]} b4 {[%emt 0:06:22]} 26. Bb2 {[%emt 0:03:50]} a5 {[%emt 0:01:07]} 27. f3 {[%emt 0:04:39]} Qd8 {[%emt 0:08:31]} 28. Qe4 {[%emt 0:09:29]} Qg5 {[%emt 0:07:15]} 29. Qe2 {[%emt 0:09:44]} Qg3+ {[%emt 0:03:55]} 30. Kd2 {[%emt 0:04:05]} h5 {[%emt 0:02:37]} 31. Kd1 {[%emt 0:08:37]} Bf2 {[%emt 0:17:22]} 32. Qf1 {[%emt 0:00:37]} c5 {[%emt 0:00:55]} 33. Kd2 {[%emt 0:08:43]} Qf4+ {[%emt 0:00:59]} 34. Kd1 {[%emt 0:00:29]} Bd4 {[%emt 0:03:56]} 35. Qe2 {[%emt 0:00:05]} Bxb2 {[%emt 0:00:15]} 36. Qxb2 {[%emt 0:00:02]} a4 {[%emt 0:01:35]} 37. Qe2 {[%emt 0:11:19]} Qd4+ {[%emt 0:01:48]} 38. Kc2 {[%emt 0:00:01]} Qc3+ {[%emt 0:00:27]} 39. Kb1 {[%emt 0:00:14]} axb3 {[%emt 0:00:06]} 40. axb3 {[%emt 0:01:24]} Qxb3+ {[%emt 0:00:10]} 41. Ka1 {[%emt 0:30:51]} Qc3+ {[%emt 0:30:50]} 42. Kb1 {[%emt 0:00:00]} Qd4 {[%emt 0:07:47]} 43. Ka2 {[%emt 0:00:00]} Kh7 {[%emt 0:00:00]} 44. Qc2+ {[%emt 0:00:00]} Kh6 {[%emt 0:00:00]} 45. Qe2 {[%emt 0:00:00]} Qc3 {[%emt 0:00:00]} 46. Kb1 {[%emt 0:00:00]} b3 {[%emt 0:00:00] normal} 0-1

[Event "GER-ch Youth U14 2019"]
[Site "Willingen"]
[Date "2019.06.12"]
[Round "6.14"]
[White "Matthaei, Jakob"]
[Black "Roste, Hugo"]
[Result "1-0"]
[ECO "B22"]
[WhiteElo "1666"]
[BlackElo "1287"]
[Annotator "NA"]
[PlyCount "77"]
[EventDate "2019.06.07"]
[EventType "swiss"]
[EventRounds "9"]
[EventCountry "GER"]
[SourceTitle "playchess.com"]
[Source "ChessBase"]
[SourceQuality "1"]
[TimeControl "40/5400+30:1800+30"]

1. e4 {[%emt 0:00:00]} c5 {[%emt 0:00:00]} 2. c3 {[%emt 0:00:00]} Nf6 {[%emt 0:00:00]} 3. e5 {[%emt 0:00:00]} Nd5 {[%emt 0:00:00]} 4. d4 {[%emt 0:00:00]} cxd4 {[%emt 0:00:00]} 5. Nf3 {[%emt 0:00:00]} Nc6 {[%emt 0:00:16]} 6. cxd4 {[%emt 0:00:00]} d6 {[%emt 0:00:17]} 7. Bc4 {[%emt 0:00:04]} dxe5 {[%emt 0:00:18]} 8. dxe5 {[%emt 0:00:09]} Nb6 {[%emt 0:00:08]} 9. Qxd8+ {[%emt 0:00:09]} Nxd8 {[%emt 0:00:14]} 10. Bb5+ {[%emt 0:01:11]} Bd7 {[%emt 0:00:14]} 11. Nc3 {[%emt 0:00:30]} g6 {[%emt 0:01:21]} 12. Be3 {[%emt 0:01:57]} Nc6 {[%emt 0:04:37]} 13. Bxb6 {[%emt 0:05:51]} axb6 {[%emt 0:00:17]} 14. Nd5 {[%emt 0:05:29]} Ra5 {[%emt 0:04:12]} 15. b4 {[%emt 0:05:13]} Ra3 {[%emt 0:02:14]} 16. Nxb6 {[%emt 0:04:11]} Bg7 {[%emt 0:05:56]} 17. Rd1 {[%emt 0:22:29]} Bg4 {[%emt 0:04:01]} 18. Nd5 {[%emt 0:03:39]} f6 {[%emt 0:10:21]} 19. Nc7+ {[%emt 0:15:09]} Kf8 {[%emt 0:02:26]} 20. Bxc6 {[%emt 0:03:02]} bxc6 {[%emt 0:00:53]} 21. h3 {[%emt 0:03:36]} Bf5 {[%emt 0:02:48]} 22. Nd4 {[%emt 0:02:20]} fxe5 {[%emt 0:02:52]} 23. Nce6+ {[%emt 0:08:54]} Kf7 {[%emt 0:02:07]} 24. Nxg7 {[%emt 0:01:09]} exd4 {[%emt 0:01:04]} 25. Nxf5 {[%emt 0:00:08]} gxf5 {[%emt 0:00:08]} 26. Rxd4 {[%emt 0:00:26]} Rxa2 {[%emt 0:00:16]} 27. O-O {[%emt 0:00:19]} Rc2 {[%emt 0:01:34]} 28. Ra1 {[%emt 0:02:33]} h5 {[%emt 0:02:14]} 29. Ra7 {[%emt 0:02:26]} Re8 {[%emt 0:02:03]} 30. Rdd7 {[%emt 0:02:19]} Rc4 {[%emt 0:01:04]} 31. Rdb7 {[%emt 0:02:27]} Re4 {[%emt 0:02:22]} 32. Ra6 {[%emt 0:01:46]} Rc8 {[%emt 0:01:15]} 33. Ra5 {[%emt 0:00:42]} Kf6 {[%emt 0:03:22]} 34. Rc5 {[%emt 0:00:31]} Ke6 {[%emt 0:12:00]} 35. Rb6 {[%emt 0:00:52]} Re5 {[%emt 0:02:56]} 36. Rbxc6+ {[%emt 0:00:47]} Rxc6 {[%emt 0:00:27]} 37. Rxc6+ {[%emt 0:00:01]} Kd7 {[%emt 0:00:42]} 38. Rc4 {[%emt 0:00:58]} Re6 {[%emt 0:01:21]} 39. Kh2 {[%emt 0:01:43] normal} 1-0